[Event "Turniej 30-lecia Liceum im. Józefa Bema"]
[Site "Warsaw, Poland"]
[Date "2020.03.07"]
[Round "1.1"]
[White "Nurkiewicz, Maciej"]
[Black "Klim, Filip"]
[Result "1-0"]
[TimeControl "0:10:02"]
[WhiteElo "2301"]
[BlackElo "1577"]

1. e4 {[%clk 00:10:02]} {[%emt 00:00:01]} e5 {[%clk 00:10:02]} {[%emt
00:00:02]} 2. Nf3 {[%clk 00:10:03]} {[%emt 00:00:01]} Nc6 {[%clk 00:10:00]}
{[%emt 00:00:04]} 3. Bc4 {[%clk 00:09:54]} {[%emt 00:00:12]} Bc5 {[%clk
00:10:00]} {[%emt 00:00:02]} 4. d3 {[%clk 00:09:52]} {[%emt 00:00:04]} Nf6
{[%clk 00:09:58]} {[%emt 00:00:03]} 5. O-O {[%clk 00:09:51]} {[%emt 00:00:03]}
d6 {[%clk 00:09:56]} {[%emt 00:00:04]} 6. Bg5 {[%clk 00:09:49]} {[%emt
00:00:05]} h6 {[%clk 00:09:34]} {[%emt 00:00:25]} 7. Bh4 {[%clk 00:09:48]}
{[%emt 00:00:02]} g5 {[%clk 00:09:04]} {[%emt 00:00:32]} 8. Bg3 {[%clk
00:09:49]} {[%emt 00:00:02]} Bg4 {[%clk 00:08:49]} {[%emt 00:00:17]} 9. c3
{[%clk 00:09:30]} {[%emt 00:00:21]} Bb6 {[%clk 00:08:26]} {[%emt 00:00:25]} 10.
Nbd2 {[%clk 00:09:17]} {[%emt 00:00:14]} Ne7 {[%clk 00:08:25]} {[%emt
00:00:03]} 11. Qb3 {[%clk 00:09:05]} {[%emt 00:00:14]} O-O {[%clk 00:07:39]}
{[%emt 00:00:46]} 12. d4 {[%clk 00:08:07]} {[%emt 00:01:02]} Bxf3 {[%clk
00:06:46]} {[%emt 00:00:55]} 13. Nxf3 {[%clk 00:08:06]} {[%emt 00:00:02]} Nxe4
{[%clk 00:06:15]} {[%emt 00:00:32]} 14. dxe5 {[%clk 00:08:03]} {[%emt
00:00:07]} g4 {[%clk 00:05:23]} {[%emt 00:00:53]} 15. Nh4 {[%clk 00:06:22]}
{[%emt 00:01:43]} Nd2 {[%clk 00:04:40]} {[%emt 00:00:46]} 16. Qd1 {[%clk
00:06:22]} {[%emt 00:00:02]} Nxf1 {[%clk 00:03:51]} {[%emt 00:00:51]} 17. Qxg4+
{[%clk 00:06:20]} {[%emt 00:00:03]} Kh8 {[%clk 00:03:23]} {[%emt 00:00:29]} 18.
Rxf1 {[%clk 00:06:14]} {[%emt 00:00:08]} d5 {[%clk 00:02:20]} {[%emt 00:01:05]}
19. Bd3 {[%clk 00:06:12]} {[%emt 00:00:04]} Rg8 {[%clk 00:01:21]} {[%emt
00:01:01]} 20. Qh5 {[%clk 00:05:42]} {[%emt 00:00:32]} Kg7 {[%clk 00:01:16]}
{[%emt 00:00:07]} 21. Bf4 {[%clk 00:05:28]} {[%emt 00:00:16]} Rh8 {[%clk
00:01:13]} {[%emt 00:00:05]} 22. e6 {[%clk 00:05:00]} {[%emt 00:00:30]} Qg8
{[%clk 00:00:21]} {[%emt 00:00:54]} 23. Bxh6+ {[%clk 00:03:59]} {[%emt
00:01:04]} Rxh6 {[%clk 00:00:15]} {[%emt 00:00:08]} 24. Qg5+ {[%clk 00:03:59]}
{[%emt 00:00:01]} Rg6 {[%clk 00:00:07]} {[%emt 00:00:11]} 25. Qxe7 {[%clk
00:03:38]} {[%emt 00:00:22]} Rxe6 {[%clk 00:00:05]} {[%emt 00:00:04]} 26. Nf5+
{[%clk 00:03:24]} {[%emt 00:00:15]} Kh8 {[%clk 00:00:03]} {[%emt 00:00:04]} 27.
Qh4+ {[%clk 00:02:33]} {[%emt 00:00:53]} Qh7 {[%clk 00:00:04]} {[%emt
00:00:01]} 28. Qxh7+ {[%clk 00:02:32]} {[%emt 00:00:03]} Kxh7 {[%clk 00:00:05]}
29. Nd4+ {[%clk 00:02:33]} Kg7 {[%clk 00:00:06]} {[%emt 00:00:02]} 30. Nxe6+
{[%clk 00:02:32]} {[%emt 00:00:03]} fxe6 {[%clk 00:00:06]} 31. Re1 {[%clk
00:02:32]} {[%emt 00:00:03]} Kf6 {[%clk 00:00:07]} {[%emt 00:00:02]} 32. Kf1
{[%clk 00:02:05]} {[%emt 00:00:29]} Rh8 {[%clk 00:00:07]} {[%emt 00:00:02]} 33.
h3 {[%clk 00:01:51]} {[%emt 00:00:16]} c6 {[%clk 00:00:06]} {[%emt 00:00:03]}
34. Ke2 {[%clk 00:01:18]} {[%emt 00:00:35]} Bc7 {[%clk 00:00:07]} {[%emt
00:00:01]} 35. Rh1 {[%clk 00:01:13]} {[%emt 00:00:07]} e5 {[%clk 00:00:08]}
{[%emt 00:00:01]} 36. f3 {[%clk 00:01:13]} {[%emt 00:00:02]} Kg5 {[%clk
00:00:08]} {[%emt 00:00:02]} 37. Kf2 {[%clk 00:00:59]} {[%emt 00:00:16]} Rf8
{[%clk 00:00:06]} {[%emt 00:00:04]} 38. h4+ {[%clk 00:00:56]} {[%emt 00:00:05]}
Kh6 {[%clk 00:00:07]} 39. Ke2 {[%clk 00:00:52]} {[%emt 00:00:06]} a6 {[%clk
00:00:05]} {[%emt 00:00:05]} 40. g4 {[%clk 00:00:52]} {[%emt 00:00:02]} Bd8
{[%clk 00:00:05]} {[%emt 00:00:02]} 41. Bf5 {[%clk 00:00:42]} {[%emt 00:00:12]}
Be7 {[%clk 00:00:04]} {[%emt 00:00:03]} 42. Kf2 {[%clk 00:00:39]} {[%emt
00:00:04]} Bd6 {[%clk 00:00:05]} {[%emt 00:00:01]} 43. Kg2 {[%clk 00:00:39]}
{[%emt 00:00:01]} Rg8 {[%clk 00:00:06]} {[%emt 00:00:01]} 44. Kh3 {[%clk
00:00:40]} {[%emt 00:00:02]} Rf8 {[%clk 00:00:05]} {[%emt 00:00:03]} 45. Re1
{[%clk 00:00:41]} Rf7 {[%clk 00:00:05]} {[%emt 00:00:02]} 46. Rf1 {[%clk
00:00:40]} {[%emt 00:00:02]} Rf8 {[%clk 00:00:06]} {[%emt 00:00:01]} 47. g5+
{[%clk 00:00:40]} {[%emt 00:00:02]} Kh5 {[%clk 00:00:06]} {[%emt 00:00:03]} 48.
Bg4+ {[%clk 00:00:40]} {[%emt 00:00:02]} Kg6 {[%clk 00:00:07]} {[%emt
00:00:02]} 49. Rg1 {[%clk 00:00:40]} {[%emt 00:00:01]} Rf4 {[%clk 00:00:07]}
{[%emt 00:00:01]} 50. Rf1 {[%clk 00:00:27]} {[%emt 00:00:15]} Rf8 {[%clk
00:00:08]} {[%emt 00:00:01]} 51. Kg2 {[%clk 00:00:25]} {[%emt 00:00:04]} Kg7
{[%clk 00:00:08]} {[%emt 00:00:03]} 52. Kh3 {[%clk 00:00:13]} {[%emt 00:00:14]}
Kg6 {[%clk 00:00:07]} {[%emt 00:00:03]} 53. Bd7 {[%clk 00:00:13]} {[%emt
00:00:01]} Rf7 {[%clk 00:00:07]} {[%emt 00:00:02]} 54. Be8 {[%clk 00:00:14]}
{[%emt 00:00:01]} Kg7 {[%clk 00:00:06]} {[%emt 00:00:03]} 55. Bxf7 {[%clk
00:00:15]} Kxf7 {[%clk 00:00:07]} {[%emt 00:00:01]} 56. Kg4 {[%clk 00:00:17]}
Be7 {[%clk 00:00:08]} {[%emt 00:00:01]} 57. Kf5 {[%clk 00:00:17]} {[%emt
00:00:02]} Bd6 {[%clk 00:00:08]} 58. h5 {[%clk 00:00:18]} 1-0

[Event "Turniej 30-lecia Liceum im. Józefa Bema"]
[Site "Warsaw, Poland"]
[Date "2020.03.07"]
[Round "1.2"]
[White "Kazmierowski, Tymon"]
[Black "Owczarzak, Jerzy"]
[Result "0-1"]
[TimeControl "0:10:02"]
[WhiteElo "1575"]
[BlackElo "2264"]

1. d4 {[%clk 00:10:01]} {[%emt 00:00:02]} b5 {[%clk 00:10:03]} {[%emt
00:00:03]} 2. e4 {[%clk 00:09:59]} {[%emt 00:00:04]} Bb7 {[%clk 00:10:04]}
{[%emt 00:00:01]} 3. Bd3 {[%clk 00:09:52]} {[%emt 00:00:08]} Nf6 {[%clk
00:10:04]} {[%emt 00:00:02]} 4. f3 {[%clk 00:09:50]} {[%emt 00:00:04]} a6
{[%clk 00:10:02]} {[%emt 00:00:05]} 5. Ne2 {[%clk 00:09:46]} {[%emt 00:00:05]}
e6 {[%clk 00:10:02]} {[%emt 00:00:02]} 6. O-O {[%clk 00:09:44]} {[%emt
00:00:03]} c5 {[%clk 00:10:03]} {[%emt 00:00:02]} 7. c3 {[%clk 00:09:18]}
{[%emt 00:00:28]} d5 {[%clk 00:09:33]} {[%emt 00:00:32]} 8. e5 {[%clk
00:08:55]} {[%emt 00:00:25]} Nfd7 {[%clk 00:09:33]} {[%emt 00:00:02]} 9. f4
{[%clk 00:08:47]} {[%emt 00:00:10]} g6 {[%clk 00:09:33]} {[%emt 00:00:03]} 10.
Be3 {[%clk 00:08:31]} {[%emt 00:00:17]} Nc6 {[%clk 00:09:33]} {[%emt 00:00:03]}
11. Nd2 {[%clk 00:08:05]} {[%emt 00:00:28]} b4 {[%clk 00:09:09]} {[%emt
00:00:27]} 12. Rc1 {[%clk 00:07:20]} {[%emt 00:00:47]} a5 {[%clk 00:08:15]}
{[%emt 00:00:55]} 13. Bb1 {[%clk 00:06:25]} {[%emt 00:00:57]} a4 {[%clk
00:07:58]} {[%emt 00:00:20]} 14. cxb4 {[%clk 00:06:11]} {[%emt 00:00:15]} cxd4
{[%clk 00:06:28]} {[%emt 00:01:33]} 15. Nxd4 {[%clk 00:05:35]} {[%emt
00:00:37]} Nxd4 {[%clk 00:06:21]} {[%emt 00:00:09]} 16. Bxd4 {[%clk 00:05:36]}
{[%emt 00:00:01]} Bxb4 {[%clk 00:06:21]} {[%emt 00:00:02]} 17. a3 {[%clk
00:05:20]} {[%emt 00:00:18]} Be7 {[%clk 00:06:05]} {[%emt 00:00:18]} 18. Nf3
{[%clk 00:05:14]} {[%emt 00:00:08]} Qa5 {[%clk 00:04:46]} {[%emt 00:01:22]} 19.
Bc3 {[%clk 00:04:18]} {[%emt 00:00:57]} Qb6+ {[%clk 00:04:18]} {[%emt
00:00:30]} 20. Kh1 {[%clk 00:04:17]} {[%emt 00:00:02]} Nc5 {[%clk 00:03:48]}
{[%emt 00:00:33]} 21. Bd4 {[%clk 00:03:52]} {[%emt 00:00:27]} Qb5 {[%clk
00:03:45]} {[%emt 00:00:05]} 22. Bc2 {[%clk 00:03:25]} {[%emt 00:00:29]} O-O
{[%clk 00:03:32]} {[%emt 00:00:15]} 23. Bxc5 {[%clk 00:03:19]} {[%emt
00:00:08]} Bxc5 {[%clk 00:03:31]} {[%emt 00:00:03]} 24. Bxa4 {[%clk 00:03:17]}
{[%emt 00:00:04]} Qb6 {[%clk 00:02:15]} {[%emt 00:01:19]} 25. b4 {[%clk
00:02:37]} {[%emt 00:00:42]} Be3 {[%clk 00:02:14]} {[%emt 00:00:02]} 26. Rc3
{[%clk 00:02:36]} {[%emt 00:00:03]} Bxf4 {[%clk 00:01:59]} {[%emt 00:00:17]} 27.
Bc2 {[%clk 00:02:20]} {[%emt 00:00:18]} d4 {[%clk 00:01:43]} {[%emt 00:00:19]}
28. Rc4 {[%clk 00:02:06]} {[%emt 00:00:15]} Ba6 {[%clk 00:01:25]} {[%emt
00:00:20]} 29. Rxd4 {[%clk 00:01:50]} {[%emt 00:00:18]} Bxf1 {[%clk 00:01:25]}
{[%emt 00:00:01]} 30. Rxf4 {[%clk 00:01:51]} {[%emt 00:00:01]} Qf2 {[%clk
00:01:06]} {[%emt 00:00:21]} 31. Rg4 {[%clk 00:01:09]} {[%emt 00:00:43]} Rfd8
{[%clk 00:00:56]} {[%emt 00:00:13]} 32. Nd4 {[%clk 00:00:35]} {[%emt 00:00:36]}
Rxa3 {[%clk 00:00:36]} {[%emt 00:00:22]} 33. Rg5 {[%clk 00:00:05]} {[%emt
00:00:33]} Rxd4 {[%clk 00:00:31]} {[%emt 00:00:07]} 34. Qc1 {[%clk 00:00:05]}
Rc3 {[%clk 00:00:22]} {[%emt 00:00:11]} 35. Qa1 {[%clk 00:00:04]} {[%emt
00:00:04]} Rxc2 {[%clk 00:00:15]} {[%emt 00:00:08]} 36. Qa8+ {[%clk 00:00:03]}
{[%emt 00:00:03]} Kg7 {[%clk 00:00:17]} 37. Qb7 {[%clk 00:00:04]} {[%emt
00:00:02]} Rd1 {[%clk 00:00:09]} {[%emt 00:00:09]} 0-1

[Event "Turniej 30-lecia Liceum im. Józefa Bema"]
[Site "Warsaw, Poland"]
[Date "2020.03.07"]
[Round "1.3"]
[White "Babik, Tomasz"]
[Black "Grzenkowicz, Lukasz"]
[Result "1-0"]
[TimeControl "0:10:02"]
[WhiteElo "2187"]
[BlackElo "1546"]

1. d4 {[%clk 00:10:01]} {[%emt 00:00:02]} d5 {[%clk 00:10:03]} {[%emt
00:00:01]} 2. Nf3 {[%clk 00:10:02]} {[%emt 00:00:01]} c6 {[%clk 00:10:04]} 3.
e3 {[%clk 00:10:02]} {[%emt 00:00:03]} Nf6 {[%clk 00:10:05]} {[%emt 00:00:01]}
4. c4 {[%clk 00:10:01]} {[%emt 00:00:02]} e6 {[%clk 00:10:06]} {[%emt
00:00:01]} 5. b3 {[%clk 00:10:01]} {[%emt 00:00:02]} Be7 {[%clk 00:10:06]}
{[%emt 00:00:02]} 6. Bb2 {[%clk 00:10:02]} {[%emt 00:00:02]} O-O {[%clk
00:10:06]} {[%emt 00:00:01]} 7. Bd3 {[%clk 00:10:03]} Nbd7 {[%clk 00:10:07]}
{[%emt 00:00:02]} 8. O-O {[%clk 00:10:03]} {[%emt 00:00:02]} Re8 {[%clk
00:10:08]} {[%emt 00:00:01]} 9. Nc3 {[%clk 00:09:59]} {[%emt 00:00:06]} a6
{[%clk 00:10:08]} {[%emt 00:00:03]} 10. Rc1 {[%clk 00:09:47]} {[%emt 00:00:13]}
Nf8 {[%clk 00:10:09]} {[%emt 00:00:01]} 11. Ne5 {[%clk 00:09:39]} {[%emt
00:00:10]} Ng6 {[%clk 00:10:10]} {[%emt 00:00:02]} 12. f4 {[%clk 00:09:39]}
{[%emt 00:00:02]} Nd7 {[%clk 00:10:05]} {[%emt 00:00:07]} 13. e4 {[%clk
00:09:14]} {[%emt 00:00:26]} Ndf8 {[%clk 00:09:55]} {[%emt 00:00:11]} 14. Bb1
{[%clk 00:08:23]} {[%emt 00:00:53]} f6 {[%clk 00:09:45]} {[%emt 00:00:13]} 15.
Nxg6 {[%clk 00:07:30]} {[%emt 00:00:54]} hxg6 {[%clk 00:09:46]} {[%emt
00:00:01]} 16. Bd3 {[%clk 00:05:34]} {[%emt 00:01:58]} dxe4 {[%clk 00:09:31]}
{[%emt 00:00:17]} 17. Bxe4 {[%clk 00:05:34]} {[%emt 00:00:01]} f5 {[%clk
00:09:31]} {[%emt 00:00:02]} 18. Bf3 {[%clk 00:05:30]} {[%emt 00:00:06]} Bf6
{[%clk 00:09:31]} {[%emt 00:00:03]} 19. d5 {[%clk 00:05:08]} {[%emt 00:00:23]}
cxd5 {[%clk 00:09:10]} {[%emt 00:00:23]} 20. cxd5 {[%clk 00:05:09]} e5 {[%clk
00:08:43]} {[%emt 00:00:29]} 21. fxe5 {[%clk 00:05:03]} {[%emt 00:00:09]} Bxe5
{[%clk 00:08:44]} 22. Na4 {[%clk 00:04:48]} {[%emt 00:00:16]} Bxb2 23. Nxb2
{[%clk 00:04:49]} Rb8 {[%clk 00:08:02]} {[%emt 00:00:21]} 24. Qd4 {[%clk
00:04:35]} {[%emt 00:00:16]} Bd7 {[%clk 00:07:28]} {[%emt 00:00:37]} 25. Rfd1
{[%clk 00:04:23]} {[%emt 00:00:13]} Qe7 {[%clk 00:07:14]} {[%emt 00:00:16]} 26.
Nc4 {[%clk 00:04:13]} {[%emt 00:00:12]} Bb5 {[%clk 00:06:28]} {[%emt 00:00:48]}
27. d6 {[%clk 00:04:06]} {[%emt 00:00:09]} Qf6 {[%clk 00:05:48]} {[%emt
00:00:42]} 28. Qxf6 {[%clk 00:03:51]} {[%emt 00:00:18]} gxf6 {[%clk 00:05:46]}
{[%emt 00:00:04]} 29. Na5 {[%clk 00:03:52]} b6 {[%clk 00:05:10]} {[%emt
00:00:39]} 30. Nc6 {[%clk 00:03:50]} {[%emt 00:00:03]} Bxc6 {[%clk 00:05:01]}
{[%emt 00:00:10]} 31. Rxc6 {[%clk 00:03:43]} {[%emt 00:00:10]} Red8 {[%clk
00:04:55]} {[%emt 00:00:09]} 32. Kf2 {[%clk 00:03:15]} {[%emt 00:00:29]} Nd7
{[%clk 00:04:49]} {[%emt 00:00:09]} 33. Rc7 {[%clk 00:03:13]} {[%emt 00:00:03]}
Ne5 {[%clk 00:04:21]} {[%emt 00:00:30]} 34. Ra7 {[%clk 00:03:00]} {[%emt
00:00:16]} Nxf3 {[%clk 00:04:11]} {[%emt 00:00:12]} 35. Kxf3 {[%clk 00:02:58]}
{[%emt 00:00:03]} a5 {[%clk 00:03:59]} {[%emt 00:00:14]} 36. Rc7 {[%clk
00:02:05]} {[%emt 00:00:56]} Kf8 {[%clk 00:03:51]} {[%emt 00:00:10]} 37. Rd4
{[%clk 00:02:02]} {[%emt 00:00:05]} g5 {[%clk 00:03:16]} {[%emt 00:00:37]} 38.
Rd5 {[%clk 00:02:01]} {[%emt 00:00:03]} f4 {[%clk 00:03:04]} {[%emt 00:00:13]}
39. Kg4 {[%clk 00:02:01]} {[%emt 00:00:02]} Re8 {[%clk 00:02:20]} {[%emt
00:00:47]} 40. Kf5 {[%clk 00:01:58]} {[%emt 00:00:04]} b5 {[%clk 00:01:37]}
{[%emt 00:00:45]} 41. Kxf6 {[%clk 00:01:57]} {[%emt 00:00:03]} g4 {[%clk
00:01:38]} {[%emt 00:00:01]} 42. Rh5 {[%clk 00:01:51]} {[%emt 00:00:07]} 1-0

[Event "Turniej 30-lecia Liceum im. Józefa Bema"]
[Site "Warsaw, Poland"]
[Date "2020.03.07"]
[Round "1.4"]
[White "Sen, Mariusz"]
[Black "Dworakowski, Lukasz"]
[Result "0-1"]
[TimeControl "0:10:02"]
[WhiteElo "1501"]
[BlackElo "2185"]

1. e4 {[%clk 00:09:58]} {[%emt 00:00:05]} e5 {[%clk 00:10:03]} {[%emt
00:00:01]} 2. Nf3 {[%clk 00:09:56]} {[%emt 00:00:04]} Nc6 {[%clk 00:10:05]} 3.
Bc4 {[%clk 00:09:55]} {[%emt 00:00:03]} Nf6 {[%clk 00:09:59]} {[%emt 00:00:08]}
4. d3 {[%clk 00:09:53]} {[%emt 00:00:04]} Be7 {[%clk 00:09:54]} {[%emt
00:00:06]} 5. O-O {[%clk 00:09:47]} {[%emt 00:00:08]} O-O {[%clk 00:09:50]}
{[%emt 00:00:07]} 6. Nc3 {[%clk 00:09:36]} {[%emt 00:00:13]} d6 {[%clk
00:09:43]} {[%emt 00:00:09]} 7. h3 {[%clk 00:09:33]} {[%emt 00:00:04]} Na5
{[%clk 00:09:41]} {[%emt 00:00:05]} 8. Bb3 {[%clk 00:09:24]} {[%emt 00:00:11]}
c6 {[%clk 00:09:04]} {[%emt 00:00:39]} 9. Be3 {[%clk 00:09:19]} {[%emt
00:00:06]} b5 {[%clk 00:08:35]} {[%emt 00:00:32]} 10. Ne2 {[%clk 00:08:12]}
{[%emt 00:01:09]} Nh5 {[%clk 00:08:31]} {[%emt 00:00:05]} 11. c3 {[%clk
00:07:38]} {[%emt 00:00:36]} Nxb3 {[%clk 00:07:51]} {[%emt 00:00:43]} 12. axb3
{[%clk 00:07:13]} {[%emt 00:00:27]} a6 {[%clk 00:07:49]} {[%emt 00:00:04]} 13.
Qd2 {[%clk 00:06:59]} {[%emt 00:00:15]} c5 {[%clk 00:07:38]} {[%emt 00:00:13]}
14. d4 {[%clk 00:05:27]} {[%emt 00:01:35]} exd4 {[%clk 00:07:24]} {[%emt
00:00:16]} 15. cxd4 {[%clk 00:05:26]} {[%emt 00:00:03]} Bb7 {[%clk 00:06:55]}
{[%emt 00:00:32]} 16. d5 {[%clk 00:05:04]} {[%emt 00:00:24]} f5 {[%clk
00:06:48]} {[%emt 00:00:08]} 17. exf5 {[%clk 00:04:21]} {[%emt 00:00:45]} Rxf5
{[%clk 00:06:47]} {[%emt 00:00:03]} 18. Nf4 {[%clk 00:03:38]} {[%emt 00:00:45]}
Nxf4 {[%clk 00:06:40]} {[%emt 00:00:10]} 19. Bxf4 {[%clk 00:03:38]} {[%emt
00:00:02]} Bxd5 {[%clk 00:06:01]} {[%emt 00:00:41]} 20. g4 {[%clk 00:03:14]}
{[%emt 00:00:26]} Bxf3 {[%clk 00:05:40]} {[%emt 00:00:23]} 21. gxf5 {[%clk
00:03:14]} {[%emt 00:00:02]} d5 {[%clk 00:04:12]} {[%emt 00:01:31]} 22. Kh2
{[%clk 00:03:04]} {[%emt 00:00:11]} Bf6 {[%clk 00:04:00]} {[%emt 00:00:14]} 23.
Rg1 {[%clk 00:02:37]} {[%emt 00:00:29]} Qd7 {[%clk 00:03:43]} {[%emt 00:00:19]}
24. Rg3 {[%clk 00:02:31]} {[%emt 00:00:07]} Be4 {[%clk 00:03:39]} {[%emt
00:00:06]} 25. Rag1 {[%clk 00:02:12]} {[%emt 00:00:21]} Qxf5 {[%clk 00:03:38]}
{[%emt 00:00:04]} 26. Bh6 {[%clk 00:01:47]} {[%emt 00:00:26]} g6 {[%clk
00:03:31]} {[%emt 00:00:10]} 27. Qa5 {[%clk 00:01:02]} {[%emt 00:00:47]} Qxf2+
{[%clk 00:03:03]} {[%emt 00:00:29]} 28. R3g2 {[%clk 00:00:47]} {[%emt
00:00:17]} Be5+ {[%clk 00:03:01]} {[%emt 00:00:03]} 29. Kh1 {[%clk 00:00:48]}
{[%emt 00:00:01]} Qg3 {[%clk 00:02:49]} {[%emt 00:00:14]} 0-1

[Event "Turniej 30-lecia Liceum im. Józefa Bema"]
[Site "Warsaw, Poland"]
[Date "2020.03.07"]
[Round "1.5"]
[White "Maciaga, Marcin"]
[Black "Pancewicz, Szymon"]
[Result "1-0"]
[TimeControl "0:10:02"]
[WhiteElo "2159"]
[BlackElo "1477"]

1. g3 {[%clk 00:10:03]} {[%emt 01:18:56]} Nf6 {[%clk 00:10:00]} {[%emt
00:00:04]} 2. c4 {[%clk 00:10:03]} {[%emt 00:00:02]} g6 {[%clk 00:10:00]}
{[%emt 00:00:02]} 3. Bg2 {[%clk 00:10:01]} {[%emt 00:00:03]} Bg7 {[%clk
00:10:00]} {[%emt 00:00:02]} 4. Nc3 {[%clk 00:09:59]} {[%emt 00:00:04]} d6
{[%clk 00:09:59]} {[%emt 00:00:03]} 5. Nf3 {[%clk 00:09:58]} {[%emt 00:00:03]}
O-O {[%clk 00:09:58]} {[%emt 00:00:03]} 6. O-O {[%clk 00:09:54]} {[%emt
00:00:05]} e5 {[%clk 00:09:57]} {[%emt 00:00:04]} 7. d3 {[%clk 00:09:51]}
{[%emt 00:00:05]} Nc6 {[%clk 00:09:49]} {[%emt 00:00:10]} 8. Rb1 {[%clk
00:09:49]} {[%emt 00:00:03]} a5 {[%clk 00:09:47]} {[%emt 00:00:04]} 9. a3
{[%clk 00:09:49]} {[%emt 00:00:03]} Nd7 {[%clk 00:09:32]} {[%emt 00:00:17]} 10.
b4 {[%clk 00:09:45]} {[%emt 00:00:06]} axb4 {[%clk 00:09:29]} {[%emt 00:00:05]}
11. axb4 {[%clk 00:09:44]} {[%emt 00:00:02]} f5 {[%clk 00:09:21]} {[%emt
00:00:10]} 12. Bg5 {[%clk 00:09:38]} {[%emt 00:00:08]} Nf6 {[%clk 00:08:31]}
{[%emt 00:00:53]} 13. b5 {[%clk 00:09:12]} {[%emt 00:00:28]} Ne7 {[%clk
00:07:50]} {[%emt 00:00:43]} 14. Qb3 {[%clk 00:09:05]} {[%emt 00:00:09]} Be6
{[%clk 00:07:22]} {[%emt 00:00:29]} 15. Nd2 {[%clk 00:09:01]} {[%emt 00:00:06]}
Rb8 {[%clk 00:06:15]} {[%emt 00:01:09]} 16. Nd5 {[%clk 00:08:56]} {[%emt
00:00:08]} Nfxd5 {[%clk 00:05:46]} {[%emt 00:00:31]} 17. cxd5 {[%clk 00:08:54]}
{[%emt 00:00:03]} Bf7 {[%clk 00:05:36]} {[%emt 00:00:11]} 18. Rfc1 {[%clk
00:07:48]} {[%emt 00:01:08]} h6 {[%clk 00:05:11]} {[%emt 00:00:28]} 19. Bxe7
{[%clk 00:07:46]} {[%emt 00:00:04]} Qxe7 {[%clk 00:05:10]} {[%emt 00:00:02]} 20.
Qc2 {[%clk 00:06:11]} {[%emt 00:01:37]} Rfc8 {[%clk 00:03:34]} {[%emt
00:01:39]} 21. e4 {[%clk 00:05:55]} {[%emt 00:00:18]} b6 {[%clk 00:03:06]}
{[%emt 00:00:29]} 22. Ra1 {[%clk 00:05:34]} {[%emt 00:00:23]} Be8 {[%clk
00:02:09]} {[%emt 00:00:59]} 23. Qb3 {[%clk 00:05:22]} {[%emt 00:00:15]} Ra8
{[%clk 00:02:02]} {[%emt 00:00:09]} 24. Bh3 {[%clk 00:04:44]} {[%emt 00:00:39]}
Qf7 {[%clk 00:01:17]} {[%emt 00:00:47]} 25. Nc4 {[%clk 00:04:18]} {[%emt
00:00:28]} Kh7 {[%clk 00:01:10]} {[%emt 00:00:10]} 26. Ne3 {[%clk 00:04:17]}
{[%emt 00:00:03]} Rxa1 {[%clk 00:00:53]} {[%emt 00:00:19]} 27. Rxa1 {[%clk
00:04:16]} {[%emt 00:00:03]} Bd7 {[%clk 00:00:54]} {[%emt 00:00:01]} 28. Ra7
{[%clk 00:03:16]} {[%emt 00:01:02]} f4 {[%clk 00:00:55]} {[%emt 00:00:01]} 29.
Ng4 {[%clk 00:01:30]} {[%emt 00:01:47]} h5 {[%clk 00:00:44]} {[%emt 00:00:13]}
30. Qc4 {[%clk 00:01:20]} {[%emt 00:00:13]} hxg4 {[%clk 00:00:43]} {[%emt
00:00:03]} 31. Bf1 {[%clk 00:01:21]} {[%emt 00:00:01]} fxg3 {[%clk 00:00:37]}
{[%emt 00:00:07]} 32. hxg3 {[%clk 00:01:16]} {[%emt 00:00:07]} Rf8 {[%clk
00:00:38]} {[%emt 00:00:02]} 33. Ra2 {[%clk 00:01:10]} {[%emt 00:00:08]} Bc8
{[%clk 00:00:30]} {[%emt 00:00:10]} 34. Rc2 {[%clk 00:01:08]} {[%emt 00:00:04]}
Qf3 {[%clk 00:00:28]} {[%emt 00:00:04]} 35. Qxc7 {[%clk 00:01:04]} {[%emt
00:00:06]} Rh8 {[%clk 00:00:25]} {[%emt 00:00:04]} 36. Qxd6 {[%clk 00:00:46]}
{[%emt 00:00:21]} Qd1 {[%clk 00:00:24]} {[%emt 00:00:02]} 37. Rc7 {[%clk
00:00:41]} {[%emt 00:00:07]} Rf8 {[%clk 00:00:12]} {[%emt 00:00:14]} 38. Qxf8
{[%clk 00:00:39]} {[%emt 00:00:04]} 1-0

[Event "Turniej 30-lecia Liceum im. Józefa Bema"]
[Site "Warsaw, Poland"]
[Date "2020.03.07"]
[Round "1.6"]
[White "Wiktorowski, Janusz"]
[Black "Adamski, Jan"]
[Result "0-1"]
[TimeControl "0:10:02"]
[WhiteElo "1440"]
[BlackElo "2127"]

1. e4 {[%emt 00:46:32]} c5 {[%emt 00:00:01]} 2. Nf3 {[%emt 00:00:02]} e6 {[%emt
00:00:02]} 3. d4 {[%emt 00:00:03]} cxd4 {[%emt 00:00:01]} 4. Nxd4 {[%emt
00:00:03]} a6 {[%emt 00:00:01]} 5. a4 {[%emt 00:00:05]} b6 {[%emt 00:00:05]} 6.
Be2 {[%emt 00:00:05]} Bb7 {[%emt 00:00:02]} 7. Nc3 {[%emt 00:00:04]} Qc7 {[%emt
00:00:04]} 8. O-O {[%emt 00:00:10]} Nf6 {[%emt 00:00:03]} 9. Bf3 {[%emt
00:00:42]} d6 {[%emt 00:00:01]} 10. Be3 {[%emt 00:00:29]} Nbd7 {[%emt
00:00:01]} 11. Nb3 {[%emt 00:00:24]} Be7 12. h3 {[%emt 00:00:32]} O-O {[%emt
00:00:04]} 13. Qd2 {[%emt 00:00:46]} Rfe8 {[%emt 00:00:01]} 14. Rfd1 {[%emt
00:00:03]} Ne5 {[%emt 00:00:02]} 15. a5 {[%emt 00:00:35]} Nc4 {[%emt 00:00:04]}
16. Qc1 {[%emt 00:00:04]} bxa5 {[%emt 00:00:03]} 17. Nd4 {[%emt 00:01:13]} Rec8
{[%emt 00:00:02]} 18. Bd2 {[%emt 00:00:30]} Rab8 19. b3 {[%emt 00:00:03]} Nxd2
{[%emt 00:00:02]} 20. Qxd2 {[%emt 00:00:08]} Qxc3 {[%emt 00:00:01]} 21. Qg5
{[%emt 00:00:15]} Rc5 {[%emt 00:00:04]} 22. Qg3 {[%emt 00:00:12]} Nxe4 {[%emt
00:00:02]} 23. Bxe4 {[%emt 00:00:02]} Qxg3 {[%emt 00:00:02]} 24. fxg3 {[%emt
00:00:03]} Bxe4 {[%emt 00:00:01]} 25. Nf3 {[%emt 00:00:17]} Bf6 26. Rac1 {[%emt
00:00:08]} d5 {[%emt 00:00:01]} 27. c4 {[%emt 00:00:14]} h6 {[%emt 00:00:04]}
28. Nd2 {[%emt 00:00:14]} Bd3 {[%emt 00:00:03]} 29. b4 {[%emt 00:00:17]} Rxb4
{[%emt 00:00:01]} 0-1